[Event "December 19 Late 2023"]
[Site "https://www.chess.com"]
[Date "2023.12.19"]
[Round "3"]
[White "Pakleza, Zbigniew"]
[Black "Niemann, Hans Moke"]
[Result "0-1"]
[Board "4"]
[TimeControl "180+1"]
[WhiteFideId "1119290"]
[BlackFideId "2093596"]
[WhiteElo "2410"]
[BlackElo "2614"]
[WhiteTeam "POL"]
[BlackTeam "USA"]
[WhiteClock "0:00:33"]
[BlackClock "0:02:11"]

1. d4 {[%clk 0:03:00]}  Nf6 {[%clk 0:02:56]} 2. Nf3 {[%clk 0:03:01]}  g6 {[%clk 0:02:56]} 3. Bf4 {[%clk 0:03:01]}  Bg7 {[%clk 0:02:56]} 4. e3 {[%clk 0:03:01]}  d6 {[%clk 0:02:57]} 5. Be2 {[%clk 0:03:01]}  O-O {[%clk 0:02:57]} 6. h3 {[%clk 0:03:02]}  Nbd7 {[%clk 0:02:56]} 7. O-O {[%clk 0:03:02]}  b6 {[%clk 0:02:56]} 8. c3 {[%clk 0:03:02]}  Bb7 {[%clk 0:02:57]} 9. a4 {[%clk 0:03:03]}  a6 {[%clk 0:02:57]} 10. Nbd2 {[%clk 0:03:03]}  Re8 {[%clk 0:02:56]} 11. Bh2 {[%clk 0:03:03]}  e5 {[%clk 0:02:57]} 12. Qb3 {[%clk 0:03:03]}  Rb8 {[%clk 0:02:54]} 13. Rfd1 {[%clk 0:03:02]}  Qe7 {[%clk 0:02:53]} 14. Rac1 {[%clk 0:03:00]}  e4 {[%clk 0:02:51]} 15. Ne1 {[%clk 0:03:00]}  h5 {[%clk 0:02:52]} 16. Nc2 {[%clk 0:02:52]}  h4 {[%clk 0:02:51]} 17. Nb4 {[%clk 0:02:47]}  a5 {[%clk 0:02:51]} 18. Nc2 {[%clk 0:02:43]}  Nh7 {[%clk 0:02:49]} 19. Na3 {[%clk 0:02:41]}  Kh8 {[%clk 0:02:47]} 20. Nb5 {[%clk 0:02:41]}  Rbc8 {[%clk 0:02:48]} 21. Nc4 {[%clk 0:02:29]}  Bd5 {[%clk 0:02:45]} 22. Qa3 {[%clk 0:02:22]}  Bf8 {[%clk 0:02:35]} 23. b4 {[%clk 0:02:13]}  Bxc4 {[%clk 0:02:19]} 24. Bxc4 {[%clk 0:02:12]}  d5 {[%clk 0:02:20]} 25. Ba2 {[%clk 0:01:31]}  Ndf6 {[%clk 0:02:18]} 26. Qb3 {[%clk 0:01:13]}  Ng5 {[%clk 0:02:15]} 27. bxa5 {[%clk 0:01:08]}  bxa5 {[%clk 0:02:15]} 28. c4 {[%clk 0:01:07]}  Nf3+ {[%clk 0:02:14]} 29. gxf3 {[%clk 0:00:56]}  exf3 {[%clk 0:02:15]} 30. Nc3 {[%clk 0:00:53]}  Qe6 {[%clk 0:02:12]} 31. Kh1 {[%clk 0:00:39]}  Qxh3 {[%clk 0:02:10]} 32. Rg1 {[%clk 0:00:33]}  Bd6 {[%clk 0:02:11]} 0-1

[Event "December 19 Late 2023"]
[Site "https://www.chess.com"]
[Date "2023.12.19"]
[Round "3"]
[White "Sahakyan, Aleks"]
[Black "Keymer, Vincent"]
[Result "0-1"]
[Board "7"]
[TimeControl "180+1"]
[WhiteFideId "13316338"]
[BlackFideId "12940690"]
[WhiteElo "2292"]
[BlackElo "2629"]
[WhiteTeam "ARM"]
[BlackTeam "GER"]
[WhiteClock "0:01:37"]
[BlackClock "0:02:25"]

1. e4 {[%clk 0:03:00]}  c6 {[%clk 0:03:00]} 2. d4 {[%clk 0:02:58]}  d5 {[%clk 0:03:01]} 3. exd5 {[%clk 0:02:58]}  cxd5 {[%clk 0:03:01]} 4. Bd3 {[%clk 0:02:59]}  Nf6 {[%clk 0:03:01]} 5. c3 {[%clk 0:02:59]}  Bg4 {[%clk 0:03:01]} 6. Qb3 {[%clk 0:02:59]}  Qc7 {[%clk 0:03:01]} 7. Ne2 {[%clk 0:02:58]}  Bxe2 {[%clk 0:03:01]} 8. Bxe2 {[%clk 0:02:58]}  e6 {[%clk 0:03:00]} 9. O-O {[%clk 0:02:56]}  Bd6 {[%clk 0:02:59]} 10. h3 {[%clk 0:02:53]}  Nc6 {[%clk 0:02:55]} 11. Qd1 {[%clk 0:02:51]}  O-O {[%clk 0:02:52]} 12. Be3 {[%clk 0:02:48]}  h6 {[%clk 0:02:33]} 13. Nd2 {[%clk 0:02:47]}  Ne7 {[%clk 0:02:29]} 14. Bd3 {[%clk 0:02:40]}  Nf5 {[%clk 0:02:29]} 15. Qf3 {[%clk 0:02:31]}  Nxe3 {[%clk 0:02:26]} 16. Qxe3 {[%clk 0:02:24]}  g6 {[%clk 0:02:26]} 17. Qxh6 {[%clk 0:02:06]}  Bf4 {[%clk 0:02:26]} 18. Qh4 {[%clk 0:02:06]}  Kg7 {[%clk 0:02:27]} 19. Nf3 {[%clk 0:01:37]}  Rh8 {[%clk 0:02:25]} 0-1

[Event "December 19 Late 2023"]
[Site "https://www.chess.com"]
[Date "2023.12.19"]
[Round "3"]
[White "Bardyk, Artem"]
[Black "Deac, Bogdan-Daniel"]
[Result "1/2-1/2"]
[Board "10"]
[TimeControl "180+1"]
[WhiteFideId "34349979"]
[BlackFideId "1226380"]
[WhiteElo "2300"]
[BlackElo "2641"]
[WhiteTeam "RUS"]
[BlackTeam "ROU"]
[WhiteClock "0:00:15"]
[BlackClock "0:00:07"]

1. e4 {[%clk 0:03:00]}  c6 {[%clk 0:03:00]} 2. Nf3 {[%clk 0:02:58]}  d5 {[%clk 0:03:00]} 3. exd5 {[%clk 0:02:59]}  cxd5 {[%clk 0:03:00]} 4. Ne5 {[%clk 0:03:00]}  a6 {[%clk 0:03:01]} 5. d4 {[%clk 0:03:01]}  Nc6 {[%clk 0:03:01]} 6. c3 {[%clk 0:03:00]}  g6 {[%clk 0:03:00]} 7. Nd2 {[%clk 0:02:56]}  Bg7 {[%clk 0:02:53]} 8. Ndf3 {[%clk 0:02:56]}  f6 {[%clk 0:02:53]} 9. Nxc6 {[%clk 0:02:37]}  bxc6 {[%clk 0:02:54]} 10. Bf4 {[%clk 0:02:38]}  Nh6 {[%clk 0:02:50]} 11. h4 {[%clk 0:02:29]}  O-O {[%clk 0:02:24]} 12. Be2 {[%clk 0:02:22]}  Nf7 {[%clk 0:02:00]} 13. h5 {[%clk 0:02:19]}  e5 {[%clk 0:02:00]} 14. hxg6 {[%clk 0:02:19]}  hxg6 {[%clk 0:02:00]} 15. dxe5 {[%clk 0:02:14]}  fxe5 {[%clk 0:02:00]} 16. Be3 {[%clk 0:02:14]}  Rb8 {[%clk 0:01:49]} 17. Qd2 {[%clk 0:02:09]}  Qf6 {[%clk 0:01:48]} 18. O-O-O {[%clk 0:02:03]}  Nd6 {[%clk 0:01:48]} 19. Bh6 {[%clk 0:01:59]}  Ne4 {[%clk 0:01:24]} 20. Qe3 {[%clk 0:01:59]}  Bf5 {[%clk 0:00:37]} 21. Bxg7 {[%clk 0:01:47]}  Qxg7 {[%clk 0:00:38]} 22. Nh4 {[%clk 0:01:42]}  Nd6 {[%clk 0:00:32]} 23. Nxf5 {[%clk 0:01:17]}  Nxf5 {[%clk 0:00:32]} 24. Qc5 {[%clk 0:01:16]}  Qb7 {[%clk 0:00:22]} 25. b3 {[%clk 0:01:12]}  Qb6 {[%clk 0:00:22]} 26. Qxb6 {[%clk 0:01:09]}  Rxb6 {[%clk 0:00:21]} 27. Rh3 {[%clk 0:01:10]}  e4 {[%clk 0:00:17]} 28. Rdh1 {[%clk 0:01:10]}  a5 {[%clk 0:00:10]} 29. Rh8+ {[%clk 0:01:03]}  Kf7 {[%clk 0:00:10]} 30. R1h7+ {[%clk 0:01:03]}  Ng7 {[%clk 0:00:11]} 31. f3 {[%clk 0:01:00]}  exf3 {[%clk 0:00:08]} 32. Bxf3 {[%clk 0:00:59]}  Rbb8 {[%clk 0:00:09]} 33. Rxf8+ {[%clk 0:00:59]}  Rxf8 {[%clk 0:00:10]} 34. Rh4 {[%clk 0:00:58]}  Ra8 {[%clk 0:00:05]} 35. Ra4 {[%clk 0:00:57]}  Ne6 {[%clk 0:00:06]} 36. b4 {[%clk 0:00:56]}  Ke7 {[%clk 0:00:05]} 37. Kc2 {[%clk 0:00:50]}  Kd6 {[%clk 0:00:04]} 38. bxa5 {[%clk 0:00:49]}  Nc5 {[%clk 0:00:03]} 39. Ra3 {[%clk 0:00:49]}  Ra7 {[%clk 0:00:02]} 40. Be2 {[%clk 0:00:48]}  g5 {[%clk 0:00:03]} 41. a6 {[%clk 0:00:47]}  Kc7 {[%clk 0:00:03]} 42. Kd2 {[%clk 0:00:41]}  Kb6 {[%clk 0:00:03]} 43. Ke3 {[%clk 0:00:42]}  Re7+ {[%clk 0:00:03]} 44. Kd2 {[%clk 0:00:35]}  Ka7 {[%clk 0:00:03]} 45. c4 {[%clk 0:00:33]}  d4 {[%clk 0:00:03]} 46. Bf3 {[%clk 0:00:32]}  Re6 {[%clk 0:00:03]} 47. Ra5 {[%clk 0:00:32]}  Nxa6 {[%clk 0:00:03]} 48. Rxg5 {[%clk 0:00:31]}  Kb6 {[%clk 0:00:03]} 49. Rg8 {[%clk 0:00:29]}  Nc5 {[%clk 0:00:03]} 50. Rd8 {[%clk 0:00:27]}  d3 {[%clk 0:00:03]} 51. Rf8 {[%clk 0:00:18]}  Rd6 {[%clk 0:00:03]} 52. g4 {[%clk 0:00:17]}  Rd4 {[%clk 0:00:02]} 53. Kc3 {[%clk 0:00:14]}  Rd6 {[%clk 0:00:02]} 54. g5 {[%clk 0:00:15]}  d2 {[%clk 0:00:02]} 55. Bd1 {[%clk 0:00:14]}  Ne4+ {[%clk 0:00:02]} 56. Kc2 {[%clk 0:00:14]}  Nxg5 {[%clk 0:00:03]} 57. c5+ {[%clk 0:00:13]}  Kxc5 {[%clk 0:00:03]} 58. Rf5+ {[%clk 0:00:13]}  Rd5 {[%clk 0:00:04]} 59. Rxd5+ {[%clk 0:00:14]}  cxd5 {[%clk 0:00:04]} 60. Kxd2 {[%clk 0:00:15]}  Ne4+ {[%clk 0:00:05]} 61. Ke3 {[%clk 0:00:15]}  Nc3 {[%clk 0:00:05]} 62. Bb3 {[%clk 0:00:15]}  Nxa2 {[%clk 0:00:05]} 63. Bxa2 {[%clk 0:00:15]}  d4+ {[%clk 0:00:06]} 64. Kd3 {[%clk 0:00:15]}  Kd6 {[%clk 0:00:07]} 65. Kxd4 {[%clk 0:00:15]} 1/2-1/2

[Event "December 19 Late 2023"]
[Site "https://www.chess.com"]
[Date "2023.12.19"]
[Round "3"]
[White "Gunduz, Umut Erdem"]
[Black "Sanal, Vahap"]
[Result "1-0"]
[Board "13"]
[TimeControl "180+1"]
[WhiteFideId "6381383"]
[BlackFideId "6300545"]
[WhiteElo "2182"]
[BlackElo "2637"]
[WhiteTeam "TUR"]
[BlackTeam "TUR"]
[WhiteClock "0:00:10"]
[BlackClock "0:00:00"]

1. e4 {[%clk 0:03:00]}  e5 {[%clk 0:02:58]} 2. Nf3 {[%clk 0:03:00]}  Nc6 {[%clk 0:02:59]} 3. Bc4 {[%clk 0:03:00]}  Bc5 {[%clk 0:02:58]} 4. c3 {[%clk 0:03:00]}  Nf6 {[%clk 0:02:58]} 5. d3 {[%clk 0:02:56]}  d6 {[%clk 0:02:57]} 6. h3 {[%clk 0:02:56]}  a6 {[%clk 0:02:57]} 7. Bb3 {[%clk 0:02:55]}  Ba7 {[%clk 0:02:58]} 8. Nbd2 {[%clk 0:02:55]}  h6 {[%clk 0:02:59]} 9. Nf1 {[%clk 0:02:55]}  Be6 {[%clk 0:02:58]} 10. Ng3 {[%clk 0:02:55]}  d5 {[%clk 0:02:57]} 11. Qe2 {[%clk 0:02:55]}  O-O {[%clk 0:02:54]} 12. Nh4 {[%clk 0:02:48]}  Ne7 {[%clk 0:02:05]} 13. Qf3 {[%clk 0:02:42]}  Ng6 {[%clk 0:02:04]} 14. Nhf5 {[%clk 0:02:38]}  Kh7 {[%clk 0:02:01]} 15. h4 {[%clk 0:02:22]}  Re8 {[%clk 0:01:57]} 16. Bg5 {[%clk 0:02:13]}  Bxf5 {[%clk 0:01:38]} 17. Nxf5 {[%clk 0:02:09]}  c6 {[%clk 0:01:14]} 18. Nxh6 {[%clk 0:02:07]}  gxh6 {[%clk 0:01:12]} 19. Bxf6 {[%clk 0:02:07]}  Qd6 {[%clk 0:01:12]} 20. exd5 {[%clk 0:01:13]}  Nf4 {[%clk 0:01:09]} 21. Qe4+ {[%clk 0:01:13]}  Kg8 {[%clk 0:01:09]} 22. Qf5 {[%clk 0:01:14]}  cxd5 {[%clk 0:01:05]} 23. O-O-O {[%clk 0:01:08]}  Qe6 {[%clk 0:01:02]} 24. g4 {[%clk 0:00:57]}  Qxf5 {[%clk 0:00:50]} 25. gxf5 {[%clk 0:00:58]}  Bxf2 {[%clk 0:00:51]} 26. d4 {[%clk 0:00:39]}  exd4 {[%clk 0:00:14]} 27. cxd4 {[%clk 0:00:33]}  Kh7 {[%clk 0:00:14]} 28. Rhf1 {[%clk 0:00:30]}  Be3+ {[%clk 0:00:14]} 29. Kb1 {[%clk 0:00:31]}  Nh5 {[%clk 0:00:14]} 30. Be5 {[%clk 0:00:29]}  f6 {[%clk 0:00:15]} 31. Bh2 {[%clk 0:00:23]}  Rad8 {[%clk 0:00:12]} 32. Rd3 {[%clk 0:00:22]}  b5 {[%clk 0:00:10]} 33. Bd1 {[%clk 0:00:20]}  Ng7 {[%clk 0:00:08]} 34. Bb3 {[%clk 0:00:15]}  h5 {[%clk 0:00:06]} 35. Bc2 {[%clk 0:00:13]}  Bh6 {[%clk 0:00:06]} 36. Rc3 {[%clk 0:00:13]}  Rd7 {[%clk 0:00:05]} 37. Rc6 {[%clk 0:00:12]}  Re2 {[%clk 0:00:04]} 38. Bd6 {[%clk 0:00:12]}  Rg2 {[%clk 0:00:02]} 39. Bb4 {[%clk 0:00:11]}  Rg4 {[%clk 0:00:03]} 40. Rxf6 {[%clk 0:00:10]}  Rxd4 {[%clk 0:00:03]} 41. Bc3 {[%clk 0:00:11]}  Rxh4 {[%clk 0:00:03]} 42. Rg6 {[%clk 0:00:11]}  Rf7 {[%clk 0:00:03]} 43. f6 {[%clk 0:00:11]}  Kg8 {[%clk 0:00:02]} 44. Rxh6 {[%clk 0:00:10]}  Ne6 {[%clk 0:00:02]} 45. Rg1+ {[%clk 0:00:10]}  Rg4 {[%clk 0:00:02]} 46. Rxg4+ {[%clk 0:00:08]}  hxg4 {[%clk 0:00:03]} 47. Rg6+ {[%clk 0:00:09]}  Kf8 {[%clk 0:00:04]} 48. Rxg4 {[%clk 0:00:10]}  Rh7 {[%clk 0:00:00]} 49. Bxh7 {[%clk 0:00:10]} 1-0

[Event "December 19 Late 2023"]
[Site "https://www.chess.com"]
[Date "2023.12.19"]
[Round "3"]
[White "Goltsev, Dmitry"]
[Black "Khismatullin, Denis"]
[Result "0-1"]
[Board "14"]
[TimeControl "180+1"]
[WhiteFideId "24176710"]
[BlackFideId "4142578"]
[WhiteElo "2370"]
[BlackElo "2552"]
[WhiteTeam "RUS"]
[BlackTeam "RUS"]
[WhiteClock "0:00:04"]
[BlackClock "0:00:25"]

1. e4 {[%clk 0:03:00]}  c5 {[%clk 0:02:59]} 2. Nf3 {[%clk 0:02:59]}  e6 {[%clk 0:02:59]} 3. d4 {[%clk 0:02:59]}  cxd4 {[%clk 0:02:59]} 4. Nxd4 {[%clk 0:03:00]}  Nf6 {[%clk 0:02:59]} 5. Nc3 {[%clk 0:03:00]}  Nc6 {[%clk 0:02:59]} 6. Be2 {[%clk 0:03:00]}  Bb4 {[%clk 0:02:57]} 7. Qd3 {[%clk 0:03:00]}  d5 {[%clk 0:02:49]} 8. exd5 {[%clk 0:02:59]}  Nxd5 {[%clk 0:02:45]} 9. Bd2 {[%clk 0:02:58]}  Nxd4 {[%clk 0:02:26]} 10. Qxd4 {[%clk 0:02:57]}  Qf6 {[%clk 0:02:12]} 11. Bb5+ {[%clk 0:02:41]}  Bd7 {[%clk 0:02:11]} 12. Bxd7+ {[%clk 0:02:31]}  Kxd7 {[%clk 0:02:12]} 13. Qd3 {[%clk 0:02:26]}  Qe5+ {[%clk 0:02:06]} 14. Kf1 {[%clk 0:01:48]}  Bxc3 {[%clk 0:02:05]} 15. Bxc3 {[%clk 0:01:46]}  Qd6 {[%clk 0:02:01]} 16. Qb5+ {[%clk 0:01:41]}  Qc6 {[%clk 0:01:54]} 17. Qxc6+ {[%clk 0:01:40]}  Kxc6 {[%clk 0:01:53]} 18. Bxg7 {[%clk 0:01:41]}  Rhg8 {[%clk 0:01:54]} 19. Bd4 {[%clk 0:01:38]}  b5 {[%clk 0:01:50]} 20. c3 {[%clk 0:01:35]}  f6 {[%clk 0:01:49]} 21. g3 {[%clk 0:01:32]}  e5 {[%clk 0:01:49]} 22. Be3 {[%clk 0:01:33]}  Nxe3+ {[%clk 0:01:31]} 23. fxe3 {[%clk 0:01:34]}  h5 {[%clk 0:01:30]} 24. Ke2 {[%clk 0:01:27]}  Kd5 {[%clk 0:01:26]} 25. Rhf1 {[%clk 0:01:16]}  Ke6 {[%clk 0:01:25]} 26. a4 {[%clk 0:01:09]}  a6 {[%clk 0:01:21]} 27. Ra3 {[%clk 0:00:44]}  h4 {[%clk 0:01:20]} 28. gxh4 {[%clk 0:00:43]}  Rg2+ {[%clk 0:01:17]} 29. Rf2 {[%clk 0:00:43]}  Rxf2+ {[%clk 0:01:14]} 30. Kxf2 {[%clk 0:00:43]}  Rh8 {[%clk 0:01:13]} 31. Kg3 {[%clk 0:00:39]}  Kf5 {[%clk 0:01:08]} 32. axb5 {[%clk 0:00:31]}  axb5 {[%clk 0:01:09]} 33. Ra6 {[%clk 0:00:30]}  Rh6 {[%clk 0:01:06]} 34. Rb6 {[%clk 0:00:21]}  Ke4 {[%clk 0:01:05]} 35. Rxb5 {[%clk 0:00:18]}  Kxe3 {[%clk 0:00:58]} 36. Kg4 {[%clk 0:00:18]}  e4 {[%clk 0:00:54]} 37. Rb8 {[%clk 0:00:14]}  Kf2 {[%clk 0:00:47]} 38. Re8 {[%clk 0:00:10]}  e3 {[%clk 0:00:47]} 39. b4 {[%clk 0:00:08]}  e2 {[%clk 0:00:47]} 40. c4 {[%clk 0:00:09]}  Rh8 {[%clk 0:00:36]} 41. Re6 {[%clk 0:00:05]}  f5+ {[%clk 0:00:30]} 42. Kxf5 {[%clk 0:00:04]}  Rxh4 {[%clk 0:00:31]} 43. c5 {[%clk 0:00:03]}  Rxb4 {[%clk 0:00:30]} 44. c6 {[%clk 0:00:03]}  Rc4 {[%clk 0:00:30]} 45. h4 {[%clk 0:00:02]}  Rxc6 {[%clk 0:00:27]} 46. Rxe2+ {[%clk 0:00:02]}  Kxe2 {[%clk 0:00:27]} 47. h5 {[%clk 0:00:03]}  Kf3 {[%clk 0:00:27]} 48. Kg5 {[%clk 0:00:04]}  Rc5+ {[%clk 0:00:26]} 49. Kg6 {[%clk 0:00:04]}  Kg4 {[%clk 0:00:26]} 50. h6 {[%clk 0:00:05]}  Rc6+ {[%clk 0:00:26]} 51. Kg7 {[%clk 0:00:05]}  Kg5 {[%clk 0:00:26]} 52. h7 {[%clk 0:00:06]}  Rc7+ {[%clk 0:00:26]} 53. Kg8 {[%clk 0:00:04]}  Kg6 {[%clk 0:00:27]} 54. h8=Q {[%clk 0:00:04]}  Rc8# {[%clk 0:00:25]} 0-1

[Event "December 19 Late 2023"]
[Site "https://www.chess.com"]
[Date "2023.12.19"]
[Round "3"]
[White "Sjugirov, Sanan"]
[Black "Annaberdiyev, Meylis"]
[Result "1-0"]
[Board "15"]
[TimeControl "180+1"]
[WhiteFideId "4189302"]
[BlackFideId "14000563"]
[WhiteElo "2569"]
[BlackElo "2405"]
[WhiteTeam "HUN"]
[BlackTeam "TKM"]
[WhiteClock "0:00:04"]
[BlackClock "0:00:00"]

1. e4 {[%clk 0:03:00]}  c5 {[%clk 0:02:59]} 2. Nf3 {[%clk 0:03:00]}  Nc6 {[%clk 0:02:59]} 3. Bb5 {[%clk 0:03:00]}  d6 {[%clk 0:02:49]} 4. O-O {[%clk 0:03:00]}  Bd7 {[%clk 0:02:49]} 5. Re1 {[%clk 0:03:00]}  Nf6 {[%clk 0:02:48]} 6. h3 {[%clk 0:03:00]}  a6 {[%clk 0:02:42]} 7. Bf1 {[%clk 0:03:00]}  e6 {[%clk 0:02:09]} 8. c3 {[%clk 0:02:59]}  Rc8 {[%clk 0:01:29]} 9. d4 {[%clk 0:02:56]}  cxd4 {[%clk 0:01:30]} 10. cxd4 {[%clk 0:02:57]}  d5 {[%clk 0:01:30]} 11. e5 {[%clk 0:02:56]}  Ne4 {[%clk 0:01:30]} 12. Nbd2 {[%clk 0:02:55]}  Nxd2 {[%clk 0:01:29]} 13. Bxd2 {[%clk 0:02:56]}  Be7 {[%clk 0:01:18]} 14. g3 {[%clk 0:02:51]}  Qb6 {[%clk 0:01:17]} 15. Bc3 {[%clk 0:02:50]}  Na7 {[%clk 0:01:13]} 16. Qd2 {[%clk 0:02:43]}  Nc6 {[%clk 0:01:06]} 17. h4 {[%clk 0:02:41]}  h6 {[%clk 0:01:04]} 18. Rac1 {[%clk 0:02:36]}  O-O {[%clk 0:01:03]} 19. Bd3 {[%clk 0:02:32]}  f5 {[%clk 0:00:54]} 20. exf6 {[%clk 0:02:31]}  Rxf6 {[%clk 0:00:54]} 21. Nh2 {[%clk 0:02:22]}  e5 {[%clk 0:00:46]} 22. Bc2 {[%clk 0:01:26]}  Rcf8 {[%clk 0:00:45]} 23. Bb3 {[%clk 0:00:18]}  Rxf2 {[%clk 0:00:44]} 24. Bxd5+ {[%clk 0:00:18]}  Kh8 {[%clk 0:00:44]} 25. Qd3 {[%clk 0:00:10]}  exd4 {[%clk 0:00:38]} 26. Bd2 {[%clk 0:00:10]}  Nb4 {[%clk 0:00:33]} 27. Bxb4 {[%clk 0:00:08]}  Bxb4 {[%clk 0:00:33]} 28. Rf1 {[%clk 0:00:06]}  Qf6 {[%clk 0:00:24]} 29. Nf3 {[%clk 0:00:03]}  Rxf1+ {[%clk 0:00:23]} 30. Rxf1 {[%clk 0:00:04]}  Bc5 {[%clk 0:00:16]} 31. Kg2 {[%clk 0:00:03]}  Bb5 {[%clk 0:00:14]} 32. Bc4 {[%clk 0:00:03]}  Bc6 {[%clk 0:00:13]} 33. Qe2 {[%clk 0:00:03]}  d3 {[%clk 0:00:13]} 34. Bxd3 {[%clk 0:00:02]}  Bd4 {[%clk 0:00:09]} 35. Bc2 {[%clk 0:00:02]}  Bxb2 {[%clk 0:00:08]} 36. Qd3 {[%clk 0:00:02]}  g6 {[%clk 0:00:07]} 37. Qe3 {[%clk 0:00:01]}  Kg7 {[%clk 0:00:07]} 38. Qe2 {[%clk 0:00:01]}  Bc3 {[%clk 0:00:06]} 39. Bd3 {[%clk 0:00:01]}  Bd4 {[%clk 0:00:06]} 40. Bc2 {[%clk 0:00:01]}  Bc3 {[%clk 0:00:06]} 41. Bd3 {[%clk 0:00:02]}  Re8 {[%clk 0:00:06]} 42. Qc2 {[%clk 0:00:02]}  Re3 {[%clk 0:00:06]} 43. Be2 {[%clk 0:00:02]}  Be4 {[%clk 0:00:06]} 44. Qd1 {[%clk 0:00:02]}  g5 {[%clk 0:00:06]} 45. hxg5 {[%clk 0:00:02]}  hxg5 {[%clk 0:00:06]} 46. Qd7+ {[%clk 0:00:02]}  Qf7 {[%clk 0:00:07]} 47. Qxf7+ {[%clk 0:00:02]}  Kxf7 {[%clk 0:00:06]} 48. Kf2 {[%clk 0:00:03]}  Rxe2+ {[%clk 0:00:02]} 49. Kxe2 {[%clk 0:00:04]}  Bd5 {[%clk 0:00:02]} 50. Nxg5+ {[%clk 0:00:04]}  Ke7 {[%clk 0:00:02]} 51. Kd3 {[%clk 0:00:04]}  Bf6 {[%clk 0:00:00]} 52. Ne4 {[%clk 0:00:04]} 1-0

[Event "December 19 Late 2023"]
[Site "https://www.chess.com"]
[Date "2023.12.19"]
[Round "3"]
[White "Svane, Rasmus"]
[Black "Solon, Nathan"]
[Result "1-0"]
[Board "17"]
[TimeControl "180+1"]
[WhiteFideId "4657101"]
[BlackFideId "2017229"]
[WhiteElo "2597"]
[BlackElo "2663"]
[WhiteTeam "GER"]
[BlackTeam "USA"]
[WhiteClock "0:01:05"]
[BlackClock "0:00:06"]

1. Nf3 {[%clk 0:03:00]}  d5 {[%clk 0:02:59]} 2. g3 {[%clk 0:02:58]}  c6 {[%clk 0:02:59]} 3. Bg2 {[%clk 0:02:59]}  Bg4 {[%clk 0:02:59]} 4. O-O {[%clk 0:02:57]}  Nd7 {[%clk 0:02:57]} 5. h3 {[%clk 0:02:58]}  Bxf3 {[%clk 0:02:57]} 6. Bxf3 {[%clk 0:02:59]}  Ngf6 {[%clk 0:02:57]} 7. d3 {[%clk 0:02:59]}  e6 {[%clk 0:02:56]} 8. e4 {[%clk 0:03:00]}  dxe4 {[%clk 0:02:57]} 9. dxe4 {[%clk 0:03:00]}  h5 {[%clk 0:02:57]} 10. Be2 {[%clk 0:02:33]}  h4 {[%clk 0:02:48]} 11. g4 {[%clk 0:02:26]}  Nxe4 {[%clk 0:02:48]} 12. Bf3 {[%clk 0:02:25]}  Nef6 {[%clk 0:02:35]} 13. Nd2 {[%clk 0:02:23]}  Bc5 {[%clk 0:02:29]} 14. Nb3 {[%clk 0:02:23]}  Bb6 {[%clk 0:02:29]} 15. Bf4 {[%clk 0:02:24]}  Bc7 {[%clk 0:02:20]} 16. Be3 {[%clk 0:02:20]}  Qe7 {[%clk 0:02:17]} 17. Kg2 {[%clk 0:02:15]}  Nd5 {[%clk 0:02:15]} 18. Qe2 {[%clk 0:02:09]}  O-O {[%clk 0:01:54]} 19. Rad1 {[%clk 0:02:06]}  Rfe8 {[%clk 0:01:47]} 20. c4 {[%clk 0:01:47]}  Nxe3+ {[%clk 0:01:43]} 21. fxe3 {[%clk 0:01:47]}  Rad8 {[%clk 0:01:31]} 22. Nd2 {[%clk 0:01:47]}  Qd6 {[%clk 0:01:26]} 23. Kh1 {[%clk 0:01:45]}  Qe5 {[%clk 0:01:16]} 24. Ne4 {[%clk 0:01:43]}  Nc5 {[%clk 0:01:11]} 25. Nxc5 {[%clk 0:01:42]}  Qxc5 {[%clk 0:01:12]} 26. Be4 {[%clk 0:01:41]}  Qe5 {[%clk 0:01:10]} 27. Bd3 {[%clk 0:01:29]}  Qg3 {[%clk 0:01:03]} 28. Rf3 {[%clk 0:01:27]}  Qe5 {[%clk 0:01:01]} 29. Rdf1 {[%clk 0:01:28]}  Re7 {[%clk 0:00:58]} 30. Bb1 {[%clk 0:01:25]}  g6 {[%clk 0:00:57]} 31. Qf2 {[%clk 0:01:25]}  Rdd7 {[%clk 0:00:54]} 32. b4 {[%clk 0:01:16]}  Qc3 {[%clk 0:00:52]} 33. Bxg6 {[%clk 0:01:09]}  fxg6 {[%clk 0:00:33]} 34. Rf8+ {[%clk 0:01:05]}  Kg7 {[%clk 0:00:06]} 35. Qxh4 {[%clk 0:01:05]} 1-0